Workbook

Sheet Sheet1

Sheet Sheet2
A1: Sheet2 | B1: أسـم الـعميل | C1: عيد
A4: م | B4: اســــم الــــــصـنــــــــــــف | C4: كـــمـيــه | D4: ســعــــر | E4: قــيـمــه
A5: =IF(B5>1,1," ") -> 1 | B5: زاويه | C5: 3 | D5: 8 | E5: =IFERROR(IF(C5>0.1,C5*D5," ")," ") -> 24
A6: =IF(B6>0.1,A5+1," ") ->  | E6: =IFERROR(IF(C6>0.1,C6*D6," ")," ") -> 
A7: =IF(B7>0.1,A6+1," ") -> 
B26: عــدد الأصناف | C26: الـقـيمه
B27: =IF(B5>0.01,COUNTA(B5:B24)," ") -> 1 | C27: =IF(D5>0.01,SUM(E5:E24)," ") -> 24
B28: نولون
B29: الأجمالى | C29: =IFERROR(C27+C28," ") -> 24

Sheet Sheet3
A1: Sheet2 | B1: أسـم الـعميل
A4: م | B4: اســــم الــــــصـنــــــــــــف | C4: كـــمـيــه | D4: ســعــــر | E4: قــيـمــه
A5: =IF(B5>1,1," ") ->  | E5: =IFERROR(IF(C5>0.1,C5*D5," ")," ") -> 
A6: =IF(B6>0.1,A5+1," ") ->  | E6: =IFERROR(IF(C6>0.1,C6*D6," ")," ") -> 
A7: =IF(B7>0.1,A6+1," ") -> 
B26: عــدد الأصناف | C26: الـقـيمه
B27: =IF(B5>0.01,COUNTA(B5:B24)," ") ->  | C27: =IF(D5>0.01,SUM(E5:E24)," ") -> 
B28: نولون
B29: الأجمالى | C29: =IFERROR(C27+C28," ") -> 

Sheet Sheet4
B1: أسـم الـعميل
A4: م | B4: اســــم الــــــصـنــــــــــــف | C4: كـــمـيــه | D4: ســعــــر | E4: قــيـمــه
A5: =IF(B5>1,1," ") ->  | E5: =IFERROR(IF(C5>0.1,C5*D5," ")," ") -> 
A6: =IF(B6>0.1,A5+1," ") ->  | E6: =IFERROR(IF(C6>0.1,C6*D6," ")," ") -> 
A7: =IF(B7>0.1,A6+1," ") -> 
B26: عــدد الأصناف | C26: الـقـيمه
B27: =IF(B5>0.01,COUNTA(B5:B24)," ") ->  | C27: =IF(D5>0.01,SUM(E5:E24)," ") -> 
B28: نولون
B29: الأجمالى | C29: =IFERROR(C27+C28," ") -> 

Sheet Sheet5
B1: أسـم الـعميل
A4: م | B4: اســــم الــــــصـنــــــــــــف | C4: كـــمـيــه | D4: ســعــــر | E4: قــيـمــه
A5: =IF(B5>1,1," ") ->  | E5: =IFERROR(IF(C5>0.1,C5*D5," ")," ") -> 
A6: =IF(B6>0.1,A5+1," ") ->  | E6: =IFERROR(IF(C6>0.1,C6*D6," ")," ") -> 
A7: =IF(B7>0.1,A6+1," ") -> 
B26: عــدد الأصناف | C26: الـقـيمه
B27: =IF(B5>0.01,COUNTA(B5:B24)," ") ->  | C27: =IF(D5>0.01,SUM(E5:E24)," ") -> 
B28: نولون
B29: الأجمالى | C29: =IFERROR(C27+C28," ") -> 

Sheet Sheet6
B1: أسـم الـعميل
A4: م | B4: اســــم الــــــصـنــــــــــــف | C4: كـــمـيــه | D4: ســعــــر | E4: قــيـمــه
A5: =IF(B5>1,1," ") ->  | E5: =IFERROR(IF(C5>0.1,C5*D5," ")," ") -> 
A6: =IF(B6>0.1,A5+1," ") ->  | E6: =IFERROR(IF(C6>0.1,C6*D6," ")," ") -> 
A7: =IF(B7>0.1,A6+1," ") -> 
B26: عــدد الأصناف | C26: الـقـيمه
B27: =IF(B5>0.01,COUNTA(B5:B24)," ") ->  | C27: =IF(D5>0.01,SUM(E5:E24)," ") -> 
B28: نولون
B29: الأجمالى | C29: =IFERROR(C27+C28," ") -> 

Sheet Sheet7
B1: أسـم الـعميل
A4: م | B4: اســــم الــــــصـنــــــــــــف | C4: كـــمـيــه | D4: ســعــــر | E4: قــيـمــه
A5: =IF(B5>1,1," ") ->  | E5: =IFERROR(IF(C5>0.1,C5*D5," ")," ") -> 
A6: =IF(B6>0.1,A5+1," ") ->  | E6: =IFERROR(IF(C6>0.1,C6*D6," ")," ") -> 
A7: =IF(B7>0.1,A6+1," ") -> 
B26: عــدد الأصناف | C26: الـقـيمه
B27: =IF(B5>0.01,COUNTA(B5:B24)," ") ->  | C27: =IF(D5>0.01,SUM(E5:E24)," ") -> 
B28: نولون
B29: الأجمالى | C29: =IFERROR(C27+C28," ") -> 

Sheet Sheet8
B1: أسـم الـعميل
A4: م | B4: اســــم الــــــصـنــــــــــــف | C4: كـــمـيــه | D4: ســعــــر | E4: قــيـمــه
A5: =IF(B5>1,1," ") ->  | E5: =IFERROR(IF(C5>0.1,C5*D5," ")," ") -> 
A6: =IF(B6>0.1,A5+1," ") ->  | E6: =IFERROR(IF(C6>0.1,C6*D6," ")," ") -> 
A7: =IF(B7>0.1,A6+1," ") -> 
B26: عــدد الأصناف | C26: الـقـيمه
B27: =IF(B5>0.01,COUNTA(B5:B24)," ") ->  | C27: =IF(D5>0.01,SUM(E5:E24)," ") -> 
B28: نولون
B29: الأجمالى | C29: =IFERROR(C27+C28," ") -> 

Sheet Sheet9
B1: أسـم الـعميل
A4: م | B4: اســــم الــــــصـنــــــــــــف | C4: كـــمـيــه | D4: ســعــــر | E4: قــيـمــه
A5: =IF(B5>1,1," ") ->  | E5: =IFERROR(IF(C5>0.1,C5*D5," ")," ") -> 
A6: =IF(B6>0.1,A5+1," ") ->  | E6: =IFERROR(IF(C6>0.1,C6*D6," ")," ") -> 
A7: =IF(B7>0.1,A6+1," ") -> 
B26: عــدد الأصناف | C26: الـقـيمه
B27: =IF(B5>0.01,COUNTA(B5:B24)," ") ->  | C27: =IF(D5>0.01,SUM(E5:E24)," ") -> 
B28: نولون
B29: الأجمالى | C29: =IFERROR(C27+C28," ") -> 

Sheet Sheet10
B1: أسـم الـعميل
A4: م | B4: اســــم الــــــصـنــــــــــــف | C4: كـــمـيــه | D4: ســعــــر | E4: قــيـمــه
A5: =IF(B5>1,1," ") ->  | E5: =IFERROR(IF(C5>0.1,C5*D5," ")," ") -> 
A6: =IF(B6>0.1,A5+1," ") ->  | E6: =IFERROR(IF(C6>0.1,C6*D6," ")," ") -> 
A7: =IF(B7>0.1,A6+1," ") -> 
B26: عــدد الأصناف | C26: الـقـيمه
B27: =IF(B5>0.01,COUNTA(B5:B24)," ") ->  | C27: =IF(D5>0.01,SUM(E5:E24)," ") -> 
B28: نولون
B29: الأجمالى | C29: =IFERROR(C27+C28," ") -> 

Sheet Sheet11
B1: أسـم الـعميل
A4: م | B4: اســــم الــــــصـنــــــــــــف | C4: كـــمـيــه | D4: ســعــــر | E4: قــيـمــه
A5: =IF(B5>1,1," ") ->  | E5: =IFERROR(IF(C5>0.1,C5*D5," ")," ") -> 
A6: =IF(B6>0.1,A5+1," ") ->  | E6: =IFERROR(IF(C6>0.1,C6*D6," ")," ") -> 
A7: =IF(B7>0.1,A6+1," ") -> 
B26: عــدد الأصناف | C26: الـقـيمه
B27: =IF(B5>0.01,COUNTA(B5:B24)," ") ->  | C27: =IF(D5>0.01,SUM(E5:E24)," ") -> 
B28: نولون
B29: الأجمالى | C29: =IFERROR(C27+C28," ") -> 

Sheet Sheet12
AH1: 2.2
AH2: =AH1+0.1 -> 2.3
AH3: =AH2+0.1 -> 2.4
AH4: 2.5
AH5: 2.6
AH6: 2.7
D7: سـمـك | F7: سـعـر الـطـن | H7: الـطـول | AH7: 2.8
D8: 2.8 | F8: 31500 | H8: 3 | AH8: 2.9
AH9: 3
AH10: 3.1
AH11: 3.2
A12: الـصـنـف | B12: وزن الـعـود | C12: سـعـر الـعـود | D12: وزن اللفه | F12: الـصـنـف | G12: وزن الـعـود | H12: سـمـك الـصـاج | I12: سـعـر | J12: سـعـر الـطـن | AH12: 3.3
A13: زاويـه | B13: =D8*H8*7.85/1000*4.5 -> 0.29673 | C13: =B13*F8/1000 -> 9.346995 | D13: =B13*30 -> 8.9019 | F13: زاويـه | H13: =G13/105.975 -> 0 | J13: =IFERROR(I13/G13*1000000,"القدس") -> القدس | AH13: 3.4
A14: اومــيــجــا | B14: =D8*H8*7.85/1000*9 -> 0.59346 | C14: =B14*F8/1000 -> 18.69399 | D14: =B14*20 -> 11.8692 | F14: اومــيــجــا | H14: =G14/211.95 -> 0 | J14: =IFERROR(I14/G14*1000000,"القدس") -> القدس | AH14: 3.5
A15: نــاعم 38 | B15: =D8*H8*7.85/1000*6.5 -> 0.42861 | C15: =B15*F8/1000 -> 13.501215 | D15: =B15*20 -> 8.5722 | F15: نــاعم 38 | H15: =G15/153.075 -> 0 | J15: القدس | AH15: 3.6
A16: زاويــه 2.5 × 2.5 | B16: =D8*H8*7.85/1000*5 -> 0.3297 | C16: =B16*F8/1000 -> 10.38555 | D16: =B16*30 -> 9.891 | F16: زاويــه 2.5 × 2.5 | H16: =G16/117.75 -> 0 | J16: =IFERROR(I16/G16*1000000,"القدس") -> القدس | AH16: 3.7
AH17: 3.8
F18: سـعـر الـطـن | AH18: 3.9
F19: 16200 | AH19: 4
AH20: 4.1
A21: نـاعـم 5 | B21: =D8*H8*7.85/1000*9 -> 0.59346 | C21: =B21*($F$19/1000) -> 9.614052 | F21: نـاعـم 5 | H21: =G21/(7.85*9*3) -> 0 | J21: القدس | AH21: 4.2
A22: خـشـن 5 | B22: =D8*H8*7.85/1000*12 -> 0.79128 | C22: 12.818736 | F22: خـشـن 5 | H22: =G22/(7.85*12*3) -> 0 | J22: القدس | AH22: 4.3
A23: نـاعم 7 | B23: =D8*H8*7.85/1000*11 -> 0.72534 | C23: 11.750508 | F23: نـاعم 7 | H23: =G23/(7.85*11*3) -> 0 | J23: القدس | AH23: 4.4
A24: خـشـن 7 | B24: =D8*H8*7.85/1000*14 -> 0.92316 | C24: 14.955192 | F24: خـشـن 7 | H24: =G24/(7.85*14*3) -> 0 | J24: القدس | AH24: 4.5
A25: نـاعم 10 | B25: =D8*H8*7.85/1000*14 -> 0.92316 | C25: 14.955192 | F25: نـاعم 10 | H25: =G25/(7.85*14*3) -> 0 | J25: القدس | AH25: 4.6
A26: خـشـن 10 | B26: =D8*H8*7.85/1000*16 -> 1.05504 | C26: 17.091648 | F26: خـشـن 10 | H26: =G26/(7.85*16*3) -> 0 | J26: القدس | AH26: 4.7
AH27: 4.8
AH28: 4.9
AH29: 5
AH30: 5.1
AH31: 5.2
AH32: 5.3
AH33: 5.4
AH34: 5.5
AH35: 5.6
AH36: 5.7
AH37: 5.8
AH38: 5.9
AH39: 6
AH40: 6.1
AH41: 6.2
AH42: 6.3
AH43: 6.4
AH44: 6.5
AH45: 6.6
AH46: 6.7
AH47: 6.8
AH48: 6.9

Sheet Sheet13
A10: الوقت | B10: النوع | C10: بيان | S10: متابعة عميل
S11: مخزون
S12: أسعار
S13: مشاكل واقتراحات
S14: اجازه وأذون

Sheet Sheet14
C3: =TEXT(D3,"dddd") -> Tuesday | D3: =TODAY() -> 2022-05-17
A4: أ / أمير
A5: مـديـن | B5: دائـن | C5: الــبـيـان | D5: الــوقــت | E5: اسـم الـسـائـق | F5: التوقيع
V8: تـــحــت الـــتـســويــه
V9: أجـــل
V10: تــحصــيــل
V11: خزينه
C42: عــدد الاذون | E42: =COUNTIF(A6:A40,">0")-COUNTIF(F6:F40,"تحصيل") -> 0
C43: المـبـيـعـات الـيـومـيــه | E43: =SUM(A6:A40)-SUMIF(F6:F40,"تــحصــيــل",A6:A40) -> 0
C44: تــحصــيــل | E44: =SUMIF(F6:F40,"تــحصــيــل",A6:A40) -> 0
C45: تحت التسويه | E45: =SUMIF(F6:F40,"تـــحــت الـــتـســويــه",A6:A40) -> 0
C46: أجـــل | E46: =SUMIF(F6:F40,"أجل",A6:A40) -> 0
C47: المدفوعات | D47: 0.4709490741 | E47: =SUM(B6:B40) -> 0
C48: خزينه | E48: =SUMIF(F6:F40,"خزينه",A6:A40) -> 0
C49: الـرصـيـد | E49: =E43+E44-E45-E46-E47-E48 -> 0

Sheet Sheet16
B8: وحـده | C8: عــدد | D8: قيمه | F8: وحـده | G8: عــدد | H8: قيمه
B9: 200 | C9: 24 | D9: =C9*B9 -> 4800 | F9: 200 | G9: 63 | H9: =G9*F9 -> 12600
B10: 100 | C10: 27 | D10: 2700 | F10: 100 | G10: 42 | H10: 4200
B11: 50 | D11: 0 | F11: 50 | G11: 2 | H11: 100
B12: 20 | D12: 0 | F12: 20 | G12: 12 | H12: 240
B13: 10 | D13: 0 | F13: 10 | G13: 6 | H13: 60
B14: 5 | D14: 0 | F14: 5 | G14: 2 | H14: 10
B15: جُـنـيـه | D15: =C15 -> 0 | F15: =B15 -> جُـنـيـه | H15: =G15 -> 0
B16: 0.5 | D16: =C16/2 -> 0 | F16: 0.5 | H16: =G16/2 -> 0
B17: الأجمالى | C17: =SUM(C9:C16) -> 51 | D17: =SUM(D9:D16) -> 7500 | F17: الأجمالى | G17: =SUM(G9:G16) -> 127 | H17: =SUM(H9:H16) -> 17210
G18: =IF(H18=0,"مطابق",IF(H18<0,"عجز",IF(H18>0,"زياده"))) -> عجز | H18: -15795
G19: =IF(H18=0,"مطابق",IF(H18<0,"عجز",IF(H18>0,"زياده"))) -> عجز

Sheet Sheet17
E7: عـدد الامـتـار
D10: عـدد | E10: كـرتـونـه | F10: عـدد الـكـراتـين | G10: عـود | K10: عـدد | L10: امـتـار
C11: عـود 3.6 | D11: =E8*0.22 -> 0 | E11: 25 | F11: =INT(D11/E11) -> 0 | G11: =D11-(F11*E11) -> 0 | J11: عـود 3.6 | L11: =K11/0.22 -> 0
C12: عـود 120 | D12: =E8*1.3 -> 0 | E12: 75 | F12: =INT(D12/E12) -> 0 | G12: =D12-(F12*E12) -> 0 | J12: عـود 120 | L12: =K12/1.3 -> 0
C13: عـود 60 | D13: =E8*1.3 -> 0 | E13: 75 | F13: =INT(D13/E13) -> 0 | G13: =D13-(F13*E13) -> 0 | J13: عـود 60 | L13: =K13/1.3 -> 0
C14: كـورنـيـر | D14: =E8*0.24 -> 0 | E14: 30 | F14: =INT(D14/E14) -> 0 | G14: =D14-(F14*E14) -> 0 | J14: كـورنـيـر | L14: =K14/0.24 -> 0
